[Event "1st Caplin Menchik Memorial 2022"]
[Site "London"]
[Date "2022.06.22"]
[Round "5.1"]
[White "Vidic, Teja"]
[Black "Yao, Lan"]
[Result "0-1"]
[ECO "B46"]
[WhiteElo "2168"]
[BlackElo "2276"]
[Annotator "TA"]
[PlyCount "114"]
[EventDate "2022.06.21"]
[EventType "tourn"]
[EventCountry "ENG"]
[SourceTitle "playchess.com"]
[Source "ChessBase"]
[SourceQuality "1"]
[TimeControl "5400+30"]

{[%evp 18,114,12,0,0,0,4,14,29,0,0,0,15,33,21,23,20,26,68,-54,-45,-63,-56,-57,-53,-72,-61,-72,-90,-149,-89,-154,-158,-159,-128,-1002,-284,-384,-166,-166,-166,-307,-340,-324,-323,-327,-322,-277,-261,-460,-422,-482,-477,-466,-464,-509,-225,-237,-114,-123,-115,-488,-487,-452,-439,-669,-694,-669,-669,-669,-669,-622,-633,-665,-606,-1230,-1164,-1218,-1275,-764,-768,-6315,-5097,-29975,-29976,-29976,-29977,-29976,-29973,-29974,-29971,-29969,-29973,-29974,-29975,-29977,-29978,-29980,-29980]} 1. e4 {[%emt 0:00:04]} c5 {[%emt 0:00:05]} 2. Nf3 {[%emt 0:00:14]} e6 {[%emt 0:00:08]} 3. d4 {[%emt 0:00:18]} cxd4 {[%emt 0:00:04]} 4. Nxd4 {[%emt 0:00:05]} Nc6 {[%emt 0:00:04]} 5. Nc3 {[%emt 0:00:13]} Qc7 {[%emt 0:00:05]} 6. f4 {[%emt 0:00:08]} a6 {[%emt 0:00:03]} 7. Nxc6 {[%emt 0:00:12]} bxc6 {[%emt 0:00:04]} 8. Bd3 {[%emt 0:00:26]} d5 {[%emt 0:00:20]} 9. O-O {[%emt 0:00:57]} Nf6 {[%emt 0:00:08]} 10. Qe2 {[%emt 0:00:26]} Be7 {[%emt 0:01:43] B46: Sicilian: Taimanov: 5 Nc3 a6.} 11. b3 {[%emt 0:00:10]} Bb7 {[%emt 0:14:53]} 12. Bb2 {[%emt 0:00:47]} h5 {[%emt 0:13:19] [#] The position is equal.} 13. Rae1 $146 {[%emt 0:05:36]} ({Predecessor:} 13. e5 Nd7 14. Na4 g6 15. c4 Nc5 16. Nxc5 Bxc5+ 17. Kh1 d4 18. Be4 Qb6 19. Rad1 {1-0 (50) Lupulescu,C (2649)-Wang,C (2476) Changsha 2019}) 13... h4 $1 {[%emt 0:20:02]} 14. h3 {[%emt 0:32:22]} Bc5+ {[%emt 0:04:37]} (14... Nh5 $5 {[%cal Re7c5]}) 15. Kh2 {[%emt 0:00:46]} Nh5 {[%emt 0:00:18]} 16. Qg4 {[%emt 0:02:49]} Ng3 {[%emt 0:03:37]} 17. Rf3 {[%emt 0:01:41]} O-O-O {[%emt 0:04:08]} 18. e5 {[%emt 0:06:16]} (18. Qxg7 Rdg8 19. Qf6 Bd6 $11) ({White should try} 18. Na4 $1 $14) 18... g6 $15 {[%emt 0:05:17]} 19. Rxg3 {[%emt 0:21:51]} hxg3+ {[%emt 0:01:23]} 20. Qxg3 {[%emt 0:00:10]} Be7 $36 {[%emt 0:03:07][%mdl 2048] Strongly threatening ...Bh4. Black is pushing.} 21. Qf3 {[%emt 0:02:23]} Qa5 {[%emt 0:04:47]} 22. a3 {[%emt 0:04:51]} c5 {[%emt 0:02:37] Prevents b4. Threatens to win with ...d4.} (22... Bxa3 $2 23. Ra1 $18) 23. Qe2 {[%emt 0:00:33] [#]} (23. b4 $142 cxb4 24. axb4 Qxb4 25. Rb1) 23... Kb8 {[%emt 0:01:23]} (23... g5 $142 $1 24. fxg5 Bxg5) 24. b4 {[%emt 0:05:56]} (24. Rf1 $142) 24... cxb4 $17 {[%emt 0:03:46]} 25. axb4 {[%emt 0:00:05]} Qxb4 {[%emt 0:06:14]} 26. Bxa6 $2 {[%emt 0:01:06][%mdl 8192]} Rd7 $2 {[%emt 0:01:13]} (26... Qxb2 27. Rb1 Qxb1 28. Nxb1 Bxa6 29. Qxa6 $11) (26... Qxf4+ 27. g3 Qf5) 27. Rb1 {[%emt 0:01:37]} Bxa6 {[%emt 0:02:48]} (27... Qxf4+ $142 28. Kh1 Qb4) 28. Qxa6 $19 {[%emt 0:00:20]} Ra7 {[%emt 0:00:02] Chess con chili.} ({Stronger than} 28... Qxf4+ 29. Kh1 Rb7 30. Ra1 $11) 29. Qd3 {[%emt 0:02:02]} (29. Qf1 $142 Rb7 30. Ba1) 29... Qxf4+ {[%emt 0:01:53]} 30. Kh1 {[%emt 0:00:05]} Rb7 {[%emt 0:00:33]} (30... Qxe5 $2 31. Nb5 Rxh3+ 32. gxh3 Qe4+ 33. Qxe4 dxe4 34. Nxa7 Kxa7 35. Bd4+ Ka6 36. Rb6+ Ka5 37. Rb7 $18) 31. Ba3 {[%emt 0:06:51]} Rxb1+ {[%emt 0:03:47]} ({And not} 31... Bxa3 32. Rxb7+ Kxb7 33. Qb5+ Kc8 34. Qa6+ Kd8 35. Qa8+ Ke7 36. Qxa3+ Kd7 37. Qa7+ Kc6 38. Qa6+ Kd7 39. Qb7+ Ke8 40. Qc8+ Ke7 41. Qxh8 $11) 32. Nxb1 {[%emt 0:00:05]} Bxa3 {[%emt 0:00:11]} 33. Nxa3 $2 {[%emt 0:02:51][%mdl 4096] Endgame KQR-KQN} (33. Qb5+ {is the only way for White.} Kc7 34. Qa5+ Kd7 35. Qa7+ Kc6 36. Qa6+ Kc5 37. Qa7+ Kc6 38. Qa6+ Kc5 39. Qa7+ Kc6) 33... Qb4 {[%emt 0:00:33]} 34. Qa6 {[%emt 0:00:30]} Qe1+ {[%emt 0:01:44]} 35. Kh2 {[%emt 0:00:04]} Qxe5+ {[%emt 0:00:02]} 36. Kh1 {[%emt 0:00:10]} Qc7 {[%emt 0:01:52]} (36... g5 $142 37. Nb5 g4 38. Qb6+ Kc8 39. Nd6+ Kd7 40. Nxf7 Qe1+ 41. Qg1 Qxg1+ 42. Kxg1 Rc8 43. Ne5+ Kd6 44. Nxg4 Rxc2) 37. Nb5 {[%emt 0:00:31] [#]} Qb7 {[%emt 0:00:43]} (37... Qc5 $1 $19 38. Nd6 Kc7 39. Nxf7 Rb8 40. Qxe6 Rb1+ 41. Kh2 Qg1+ 42. Kg3 Qe1+ 43. Qxe1 Rxe1) 38. Qd6+ $17 {[%emt 0:01:58]} Kc8 {[%emt 0:00:04]} 39. Qe5 $2 {[%emt 0:00:10][%mdl 8192] [#]} (39. Qc5+ $17 {nothing else works.} Kd8 40. Qd6+ Qd7 41. Qb8+ Ke7 42. Qxh8 Qxb5 43. Qh4+ Ke8 44. Qh8+ Ke7 45. Qh4+ Kd7 46. Qf6) 39... Rxh3+ $3 $19 {[%emt 0:00:37][%mdl 512]} 40. gxh3 {[%emt 0:00:18] Black must now prevent Nd6+.} Qxb5 {[%emt 0:00:02] KQ-KQ} 41. Qd6 {[%emt 0:01:15]} (41. Kg2 $142 Qc6 42. Qb2) 41... Qb1+ {[%emt 0:00:26]} 42. Kg2 {[%emt 0:00:13]} Qxc2+ {[%emt 0:00:04]} 43. Kf3 {[%emt 0:00:19]} Qc7 {[%emt 0:01:07]} 44. Qf8+ {[%emt 0:00:08]} Kb7 {[%emt 0:00:02]} 45. Qb4+ {[%emt 0:00:13]} Kc6 {[%emt 0:00:04] ...Kd7 is the strong threat.} 46. Qa4+ {[%emt 0:00:17]} Kd6 {[%emt 0:00:36] aiming for ...Qc3+.} 47. Qb4+ {[%emt 0:00:18]} Kd7 {[%emt 0:00:19]} 48. Qf8 {[%emt 0:00:22]} Qc3+ {[%emt 0:00:10]} 49. Kg4 {[%emt 0:00:34]} Qf6 {[%emt 0:00:54] And now ...e5 would win.} 50. h4 {[%emt 0:00:14]} Qf5+ {[%emt 0:00:11] Black mates.} 51. Kg3 {[%emt 0:00:05]} e5 {[%emt 0:00:25]} 52. Qc5 {[%emt 0:00:23]} Qd3+ {[%emt 0:00:19]} 53. Kg2 {[%emt 0:00:11]} Qd4 {[%emt 0:01:22]} 54. Qb5+ {[%emt 0:00:10]} Ke7 {[%emt 0:00:11]} 55. Qb7+ {[%emt 0:00:11]} Kf6 {[%emt 0:00:13]} 56. Qb8 {[%emt 0:00:36]} Kg7 {[%emt 0:00:16]} 57. Qd8 {[%emt 0:00:20]} Qe4+ {[%emt 0:00:11] Weighted Error Value: White=0.79/Black=0.53} 0-1

[Event "1st Caplin Menchik Memorial 2022"]
[Site "London"]
[Date "2022.06.22"]
[Round "5.2"]
[White "Koubova, Anna Marie"]
[Black "Hunt, Harriet V"]
[Result "1-0"]
[ECO "E02"]
[WhiteElo "2115"]
[BlackElo "2395"]
[Annotator "TA"]
[PlyCount "83"]
[EventDate "2022.06.21"]
[EventType "tourn"]
[EventCountry "ENG"]
[SourceTitle "playchess.com"]
[Source "ChessBase"]
[SourceQuality "1"]
[TimeControl "5400+30"]

{[%evp 11,83,15,25,20,58,13,71,44,62,52,78,69,71,54,77,29,38,35,41,46,40,50,27,1,24,0,0,0,20,-32,-43,-22,0,0,0,-8,0,0,0,0,0,0,0,0,0,0,0,0,0,0,0,0,7,-100,-117,-94,133,52,337,86,75,79,203,189,876,870,858,830,845,854,813,781,785,736]} 1. d4 {[%emt 0:00:15]} Nf6 {[%emt 0:00:14]} 2. c4 {[%emt 0:00:38]} e6 {[%emt 0:00:09]} 3. g3 {[%emt 0:00:22]} d5 {[%emt 0:00:35]} 4. Bg2 {[%emt 0:00:39]} dxc4 {[%emt 0:00:35]} 5. Qa4+ {[%emt 0:01:58]} Bd7 {[%emt 0:08:07][%cal Bc8d7,Bd7c6,Bc6e4,Be4d5][%mdl 32]} 6. Qxc4 {[%emt 0:00:17]} Bc6 {[%emt 0:00:37]} 7. Nf3 {[%emt 0:00:16] E02: Open Catalan: 5 Qa4+.} b5 {[%emt 0:02:08]} 8. Qc2 {[%emt 0:02:18] [#]} Bb4+ $146 {[%emt 0:04:17]} (8... Be4 $11 {keeps the balance.} 9. Qb3 Nc6) ({Predecessor:} 8... Be4 9. Qd1 c5 10. O-O Nbd7 11. Nc3 Bc6 12. dxc5 Bxc5 13. Ne1 Qb6 14. Bxc6 Qxc6 {1-0 (38) Esipenko,A (2582)-Galopoulos,N (2429) Tallinn 2019}) 9. Nbd2 {[%emt 0:05:32] White is better.} (9. Bd2 $5 {[%cal Rd2b4]} Be7 10. O-O $14) 9... Be4 {[%emt 0:05:06]} 10. Qb3 {[%emt 0:03:53]} Nc6 {[%emt 0:00:58][%cal Oc6d4]} 11. O-O {[%emt 0:00:57]} Bxd2 {[%emt 0:01:07]} 12. Bxd2 {[%emt 0:00:35]} Rb8 {[%emt 0:05:55]} 13. e3 {[%emt 0:03:49]} ({White should play} 13. Rfd1 $16) 13... O-O {[%emt 0:01:02]} 14. Rac1 {[%emt 0:06:36]} Bd5 {[%emt 0:13:22]} 15. Qc2 {[%emt 0:02:48]} Rb6 {[%emt 0:03:33]} 16. b3 {[%emt 0:05:24]} b4 {[%emt 0:07:45]} 17. Rfd1 {[%emt 0:02:21]} Qa8 {[%emt 0:06:08][%cal Oc6d4]} 18. Ne1 {[%emt 0:10:08] Strongly threatening e4.} Bxg2 {[%emt 0:04:00]} 19. Nxg2 {[%emt 0:00:12]} e5 {[%emt 0:00:31]} 20. Qc5 {[%emt 0:03:41]} ({White should try} 20. Nh4 $11) 20... Rd8 $15 {[%emt 0:06:51][%cal Re5d4]} 21. Be1 {[%emt 0:04:56]} (21. dxe5 Ne4 22. Qc2 Nxe5 $17) 21... exd4 {[%emt 0:04:57]} (21... Rd5 $5 {[%cal Rd5c5]} 22. Qc4 Qd8 $15) 22. exd4 {[%emt 0:00:22]} Nd5 {[%emt 0:02:12]} (22... Rd5 $5 23. Qc4 a5 $11) 23. Bd2 {[%emt 0:10:10]} Nce7 {[%emt 0:01:59]} 24. Ne3 {[%emt 0:07:07]} Qb7 {[%emt 0:02:09]} 25. Nxd5 {[%emt 0:09:55]} Nxd5 {[%emt 0:00:04]} 26. Re1 {[%emt 0:00:46]} h6 {[%emt 0:02:24]} 27. Re5 {[%emt 0:03:11]} a5 {[%emt 0:01:33]} 28. Rce1 {[%emt 0:01:54]} ({Don't play} 28. Qxa5 Rb5 29. Rxd5 (29. Qa4 $2 Ra8 $19) 29... Qxd5 30. Qxc7 Qxd4 $17) 28... Qa8 {[%emt 0:00:19]} 29. Qc2 {[%emt 0:04:41]} Rbd6 {[%emt 0:02:00]} 30. Qc5 {[%emt 0:03:07]} f6 {[%emt 0:04:44]} 31. R5e4 {[%emt 0:01:10]} Kf7 {[%emt 0:01:41]} (31... Rc6 $5 32. Qb5 Rcd6 $14) 32. Bf4 {[%emt 0:03:04]} (32. Qc2 $11 {remains equal.} Qc6 33. Qd3) 32... Rc6 $17 {[%emt 0:01:00]} 33. Qb5 {[%emt 0:00:17]} Rc2 {[%emt 0:01:58] [#] Inhibits Qe2.} (33... Qa6 $1 $17 {[%cal Ra6b5] stays on course.} 34. Qxa6 Rxa6) 34. Qd3 {[%emt 0:00:58] White is more active.} (34. Bxh6 $1 $16 {[%mdl 512] Hoping for Qd3.} Qc8 35. Qd3) 34... Qc6 $2 {[%emt 0:03:35][%mdl 8192] [#]} (34... Rc3 $1 $14 35. Qe2 Nxf4 36. gxf4 (36. Rxf4 Re8 $15) 36... Kg8) 35. Qf3 $2 {[%emt 0:01:02]} (35. Bxh6 $1 $18 {[%cal Oe4g4][%mdl 512] Intending Rg4! and mate.} Qc3 (35... g6 36. h4) 36. Qd1 $1 (36. Qa6 $2 Qf3 $19)) 35... Nxf4 $16 {[%emt 0:01:06]} 36. Qxf4 {[%emt 0:00:18]} Qd5 {[%emt 0:01:14]} (36... Kg8 $16) 37. Re7+ $40 {[%emt 0:01:53][%mdl 128] White has strong attack.} Kf8 $2 {[%emt 0:00:31] [#]} (37... Kg8) 38. Qg4 $1 {[%emt 0:00:36][%csl Ge7][%cal Rg4g7] White is clearly winning.} Qg5 {[%emt 0:01:36]} 39. Qe4 {[%emt 0:00:22] Threatening mate with Qh7.} Qd2 {[%emt 0:00:45]} 40. Re8+ {[%emt 0:00:16]} Kf7 {[%emt 0:00:05]} 41. Qe6+ {[%emt 0:01:18]} Kg6 {[%emt 0:00:06]} 42. Qg4+ {[%emt 0:00:34] Weighted Error Value: White=0.29 (precise) /Black=0.34} 1-0

[Event "1st Caplin Menchik Memorial 2022"]
[Site "London"]
[Date "2022.06.22"]
[Round "5.3"]
[White "Dworakowska, Joanna"]
[Black "Varney, Zoe"]
[Result "1-0"]
[ECO "C48"]
[WhiteElo "2321"]
[BlackElo "2046"]
[Annotator "TA"]
[PlyCount "71"]
[EventDate "2022.06.21"]
[EventType "tourn"]
[EventCountry "ENG"]
[SourceTitle "playchess.com"]
[Source "ChessBase"]
[SourceQuality "1"]
[TimeControl "5400+30"]

{[%evp 9,70,0,14,-25,-20,-24,-39,-37,-21,-21,-17,-28,-12,-58,-25,-40,-35,-78,-67,-76,-69,-125,-125,-138,-131,-185,-178,-197,-181,-186,-197,-177,-182,-186,-151,-160,-153,-191,-181,-196,-69,-178,-136,-192,-180,-174,-91,-95,419,463,727,708,1587,1509,1728,1644,29986,29987,29987,29988,29988,29989,29999]} 1. e4 {[%emt 0:00:05]} e5 {[%emt 0:00:12]} 2. Nf3 {[%emt 0:00:04]} Nc6 {[%emt 0:00:04]} 3. Nc3 {[%emt 0:00:08]} Nf6 {[%emt 0:00:09]} 4. Bb5 {[%emt 0:00:06]} Nd4 {[%emt 0:00:07]} 5. Ba4 {[%emt 0:02:07]} c6 {[%emt 0:00:04]} 6. Bb3 {[%emt 0:05:44] C48: Four Knights: 4 Bb5, replies other than 4...Bb4.} (6. Nxe5 {with more complications.} d6 7. Nf3 Bg4 8. d3) 6... d6 {[%emt 0:07:15] [#]} ({Much less strong is} 6... Nxb3 7. axb3 d6 8. d4 $11) 7. Nxd4 $146 {[%emt 0:01:13]} ({Predecessor:} 7. h3 Nxf3+ 8. Qxf3 g6 9. d3 Bg7 10. Be3 O-O 11. O-O Qe7 12. Qe2 Nh5 13. Qd2 {0-1 (27) Sharma,D (2066)-Wells,P (2431) London 2016}) 7... exd4 {[%emt 0:00:18]} 8. Ne2 {[%emt 0:00:13] Black is slightly better.} Nxe4 {[%emt 0:02:10][%cal Bf6e4,Be4c5,Bc5e6][%mdl 32]} 9. Nxd4 {[%emt 0:01:22]} Qf6 {[%emt 0:02:23][%csl Ge4][%cal Rf6f2] [#]} 10. Nf3 {[%emt 0:03:54]} Nc5 {[%emt 0:11:13]} 11. Bc4 {[%emt 0:03:41]} (11. d4 $11 {should be considered.} Nxb3 12. axb3) 11... Bg4 $40 {[%emt 0:03:33][%cal Bc8g4,Bg4f5,Bf5g6,Bg6h7][%mdl 160] Black attacks.} (11... d5 $5 {[%cal Rd5c4]} 12. Be2 Bd6 $15) 12. Be2 {[%emt 0:07:56]} Ne6 {[%emt 0:03:58]} 13. Ng1 {[%emt 0:07:24]} Bf5 {[%emt 0:08:55]} 14. d3 {[%emt 0:00:33]} d5 {[%emt 0:06:03]} 15. g4 {[%emt 0:16:56]} (15. Bg4 $15) 15... Bg6 $17 {[%emt 0:00:55]} 16. h4 {[%emt 0:00:20]} h6 {[%emt 0:05:07]} 17. Rh3 {[%emt 0:08:31]} (17. Be3 $17) 17... Bc5 {[%emt 0:02:53]} 18. Nf3 {[%emt 0:02:21]} O-O-O {[%emt 0:07:30]} 19. h5 {[%emt 0:01:49]} Bh7 {[%emt 0:05:27]} 20. Kf1 {[%emt 0:08:07]} Rhe8 {[%emt 0:08:48]} 21. Rb1 {[%emt 0:00:33]} Bd6 {[%emt 0:08:48]} 22. b4 {[%emt 0:03:47]} Qe7 {[%emt 0:03:37]} 23. Be3 {[%emt 0:03:27]} Bxb4 {[%emt 0:03:58]} ({And not} 23... Nf4 24. Bxf4 Bxf4 25. Nh4) 24. Nd4 {[%emt 0:03:05]} Bd6 {[%emt 0:04:45]} (24... Ng5 $19 25. Rh1 Bc3) 25. Qd2 {[%emt 0:00:47]} (25. Nxe6 $15 fxe6 26. Bxa7) 25... c5 {[%emt 0:02:31]} 26. Nb5 {[%emt 0:04:11]} (26. Nxe6 $17 {keeps fighting.} fxe6 27. Qa5) 26... Bb8 $19 {[%emt 0:00:49] aiming for ...d4.} 27. Bf3 {[%emt 0:05:19][%cal Be2f3,Bf3c6,Bc6e8][%mdl 32]} d4 {[%emt 0:00:56] Prevents Nc3.} (27... f5 $19 {White must now prevent ...b6.} 28. Qa5 b6) 28. Qa5 $17 {[%emt 0:04:36] [#]} dxe3 $2 {[%emt 0:00:56][%mdl 8192]} (28... a6 $1 $17 29. Nc3 dxe3 30. Bxb7+ Qxb7 31. Rxb7 e2+ 32. Nxe2 Kxb7) 29. Nxa7+ $18 {[%emt 0:00:26]} Kd7 {[%emt 0:01:02]} (29... Bxa7 $142 30. Qxa7 Rxd3) 30. Rxb7+ {[%emt 0:02:30]} Nc7 {[%emt 0:00:12]} 31. Bc6+ {[%emt 0:01:06][%mdl 64] Skewer} Kd6 {[%emt 0:00:01]} 32. Rxe3 {[%emt 0:00:35]} Qh4 {[%emt 0:00:38]} 33. Bxe8 {[%emt 0:01:33] White mates.} Qh1+ {[%emt 0:00:13]} 34. Ke2 {[%emt 0:00:02]} Qxb7 {[%emt 0:00:07]} 35. Nb5+ {[%emt 0:00:09]} Kd5 {[%emt 0:00:46]} 36. c4# {[%emt 0:00:51] White used his chance.  Weighted Error Value: White=0.18 (very precise) /Black=0.60} 1-0

[Event "1st Caplin Menchik Memorial 2022"]
[Site "London"]
[Date "2022.06.22"]
[Round "5.4"]
[White "Schulze, Lara"]
[Black "Hryshchenko, Kamila"]
[Result "1/2-1/2"]
[ECO "B06"]
[WhiteElo "2303"]
[BlackElo "2037"]
[Annotator "TA"]
[PlyCount "133"]
[EventDate "2022.06.21"]
[EventType "tourn"]
[EventCountry "ENG"]
[SourceTitle "playchess.com"]
[Source "ChessBase"]
[SourceQuality "1"]
[TimeControl "5400+30"]

{[%evp 10,133,45,39,47,37,54,35,33,18,40,22,21,31,35,25,19,20,37,24,27,25,63,70,66,41,56,53,58,57,83,75,88,75,97,0,0,-18,21,0,-20,-55,0,0,0,0,0,0,0,0,0,0,25,0,11,0,3,0,25,-11,41,43,91,31,32,27,27,35,32,43,174,170,150,56,35,0,0,-17,-18,-32,0,0,0,0,0,0,109,108,74,127,128,0,337,342,361,325,484,0,0,0,0,-143,-96,-104,-95,-97,-102,-161,-97,-98,-94,-94,-87,-88,-61,-106,-43,-77,-63,-63,-45,-53,0,0,0,-59]} 1. e4 {[%emt 0:00:02]} g6 {[%emt 0:00:45]} 2. d4 {[%emt 0:00:10]} Bg7 {[%emt 0:00:21]} 3. Nf3 {[%emt 0:00:18]} d6 {[%emt 0:00:26]} 4. Bc4 {[%emt 0:00:24]} e6 {[%emt 0:01:30]} 5. Bb3 {[%emt 0:00:23]} Ne7 {[%emt 0:01:24]} 6. O-O {[%emt 0:00:52]} O-O {[%emt 0:00:30] B06: Modern Defence.} 7. Re1 {[%emt 0:03:13]} Nd7 {[%emt 0:02:00] has lost popularity (7...b6).} 8. Nbd2 {[%emt 0:00:50]} a6 {[%emt 0:06:46] White is slightly better.} 9. a4 {[%emt 0:00:11]} b6 {[%emt 0:02:43]} 10. Nf1 {[%emt 0:04:26]} Bb7 {[%emt 0:03:18]} 11. Ng3 {[%emt 0:00:25]} c5 {[%emt 0:03:18]} 12. c3 {[%emt 0:00:25]} Rc8 {[%emt 0:03:18] [#]} 13. h3 $146 {[%emt 0:06:55]} ({Predecessor:} 13. Be3 h6 14. Qd2 Kh7 15. Rad1 c4 16. Bc2 f5 17. exf5 exf5 18. Bf4 Rf6 19. Qe2 {½-½ (31) Liebau,A (2165)-Hampel,F (2157) Lehrte 2014}) 13... Qc7 {[%emt 0:04:38]} 14. Bg5 {[%emt 0:10:35]} Rfe8 {[%emt 0:01:30]} 15. Qd2 {[%emt 0:01:01]} c4 {[%emt 0:01:54]} 16. Bc2 {[%emt 0:01:45]} e5 {[%emt 0:01:52]} 17. d5 {[%emt 0:06:04]} Kh8 {[%emt 0:12:26]} 18. h4 {[%emt 0:04:04]} Ng8 {[%emt 0:02:40]} 19. h5 {[%emt 0:02:51]} Ndf6 {[%emt 0:03:51]} 20. Nh2 {[%emt 0:10:00]} Rb8 {[%emt 0:03:04]} 21. Rf1 {[%emt 0:10:15]} Bc8 {[%emt 0:08:16]} 22. h6 {[%emt 0:04:33]} (22. f4 $1 $16 {[%cal Rf4e5]}) 22... Bf8 $11 {[%emt 0:01:20]} 23. f4 {[%emt 0:00:23]} Nd7 {[%emt 0:02:36]} 24. fxe5 {[%emt 0:11:39]} (24. f5 $5 {[%cal Rf5g6]}) 24... Nxe5 {[%emt 0:00:25]} 25. Nf3 {[%emt 0:00:55]} Be7 {[%emt 0:06:46]} (25... Ng4 $15) 26. Be3 {[%emt 0:07:59]} f6 {[%emt 0:01:27]} 27. Nxe5 {[%emt 0:01:18]} dxe5 {[%emt 0:00:19]} 28. Rf2 {[%emt 0:02:26]} Rd8 {[%emt 0:01:08]} 29. Qe2 {[%emt 0:06:22]} Bd7 {[%emt 0:02:05]} 30. Nf1 {[%emt 0:00:45]} Ra8 {[%emt 0:04:07]} 31. Nh2 {[%emt 0:01:19]} b5 {[%emt 0:01:05]} 32. Kh1 {[%emt 0:01:45]} Rdb8 {[%emt 0:01:14]} 33. Bd1 {[%emt 0:01:17]} Qd6 {[%emt 0:02:48]} 34. Bc2 {[%emt 0:00:40]} b4 {[%emt 0:01:13]} (34... Bf8 $11) 35. Qxc4 $14 {[%emt 0:00:24]} a5 {[%emt 0:01:57]} (35... bxc3 $14 36. bxc3 (36. Qxc3 g5 $14) 36... Rc8) 36. Qe2 {[%emt 0:00:33] White is more active.} ({White should try} 36. Qf1 $16) 36... bxc3 {[%emt 0:06:56]} 37. bxc3 {[%emt 0:00:01]} Qc7 {[%emt 0:01:41]} 38. c4 {[%emt 0:00:27]} Rb4 {[%emt 0:00:17]} 39. Bd3 {[%emt 0:00:40][%cal Oc4c5] c5! is the strong threat.} Rxa4 {[%emt 0:02:24]} (39... Bc5 $1 $14) 40. Rxa4 $18 {[%emt 0:00:40]} Bxa4 {[%emt 0:00:04]} 41. Qa2 {[%emt 0:00:20]} (41. Rf1 $1 $16) 41... Bc5 $1 $14 {[%emt 0:00:57]} 42. Nf1 {[%emt 0:00:55]} Bd7 {[%emt 0:00:46]} 43. Bxc5 {[%emt 0:00:49]} Qxc5 {[%emt 0:00:07]} 44. Qd2 {[%emt 0:00:29]} a4 {[%emt 0:02:49]} (44... Nxh6 $5 {[%cal Rh6g4]} 45. Rxf6 Kg7 $11) 45. Qe3 {[%emt 0:00:04]} Qb4 {[%emt 0:00:43]} 46. c5 $36 {[%emt 0:00:39][%mdl 2048] White has some pressure.} a3 {[%emt 0:00:02] And now ...a2 would win.} 47. Ra2 {[%emt 0:00:15]} Ba4 {[%emt 0:00:41]} (47... Qb3 $1 $11 48. Qd2 Ba4) 48. c6 $16 {[%emt 0:00:47]} Bb3 {[%emt 0:00:12]} 49. Ra1 {[%emt 0:00:04]} a2 {[%emt 0:01:00] [#]} 50. Nd2 {[%emt 0:00:44]} (50. Be2 $1 $16) 50... Qc3 $2 {[%emt 0:00:51][%mdl 8192]} (50... Bxd5 $1 $11 51. exd5 Qc3 52. Rxa2 (52. Nb3 Qxb3 53. c7 e4 $11) 52... Rxa2) 51. Nxb3 $18 {[%emt 0:00:05]} Qxb3 {[%emt 0:00:03] [#]} 52. Qd2 {[%emt 0:00:13] Inhibits Qc3.} Nxh6 {[%emt 0:00:36]} (52... Qb6 $142 53. Rxa2 Rxa2 54. Qxa2 Qe3) 53. Qc2 $2 {[%emt 0:00:52]} (53. c7 $18 {Strongly threatening d6.} Rc8 54. Rxa2) 53... Qxc2 $11 {[%emt 0:01:01]} 54. Bxc2 {[%emt 0:00:01][%mdl 4096] Endgame aiming for d6. KRB-KRN} Nf7 {[%emt 0:00:08]} 55. c7 {[%emt 0:01:12]} (55. Bb3 $11 {keeps the balance.} Ra3 56. c7 (56. Bxa2 Kg7 $17)) 55... Rc8 {[%emt 0:00:52]} (55... Nd6 $142 {Threatens to win with ...Ra7.} 56. Bb3 Rc8 57. Rxa2 Rxc7) 56. Rxa2 {[%emt 0:00:23] Black must now prevent Ra7.} Rxc7 {[%emt 0:00:05]} 57. Bd3 {[%emt 0:00:42]} Rc3 {[%emt 0:00:35]} 58. Ra7 {[%emt 0:00:47]} (58. Be2 $17) 58... Kg8 {[%emt 0:01:00]} ({Worse is} 58... Rxd3 59. Rxf7 Rd4 60. g4 $11) ({Black should play} 58... Ng5 $19 59. Be2 Nxe4) 59. Be2 $17 {[%emt 0:00:28]} Rc1+ {[%emt 0:00:36]} 60. Kh2 {[%emt 0:00:05]} h5 {[%emt 0:00:16] Prevents Bg4.} 61. Kg3 {[%emt 0:01:01]} Rc2 {[%emt 0:00:40]} 62. Bf3 {[%emt 0:00:20]} Kf8 {[%emt 0:00:16]} (62... Ng5 $17 63. Ra4 Kg7) 63. Ra8+ {[%emt 0:00:20]} Kg7 {[%emt 0:00:36]} 64. Ra7 {[%emt 0:00:05]} Rd2 {[%emt 0:00:36]} 65. Rb7 {[%emt 0:00:21]} Kf8 {[%emt 0:00:24]} (65... Ra2 $15) 66. Rb8+ $11 {[%emt 0:00:04]} Kg7 {[%emt 0:00:24]} (66... Ke7 $11) 67. Rb7 {[%emt 0:00:06] Weighted Error Value: White=0.28 (precise) /Black=0.30} 1/2-1/2